[Event "Budapest Chess Festival 2024"]
[Site "Budapest"]
[Date "2024.05.23"]
[Round "1.14"]
[White "Mihok, Oliver"]
[Black "Haszon, David"]
[Result "1-0"]
[ECO "B40"]
[WhiteElo "2528"]
[BlackElo "2258"]
[Annotator "RC"]
[PlyCount "81"]
[EventDate "2024.05.20"]
[EventType "swiss"]
[EventCountry "HUN"]
[SourceTitle "playchess.com"]
[Source "ChessBase"]
[SourceQuality "1"]
[TimeControl "40/5400+30:1800+30"]

1. e4 {[%emt 0:00:46]} c5 {[%emt 0:00:41]} 2. Nf3 {[%emt 0:00:10]} e6 {[%emt 0:00:10]} 3. g3 {[%emt 0:00:38]} Nc6 {[%emt 0:01:20]} 4. Bg2 {[%emt 0:00:07]} d5 {[%emt 0:00:41]} 5. exd5 {[%emt 0:00:42]} exd5 {[%emt 0:00:22]} 6. d4 {[%emt 0:00:07]} Bg4 {[%emt 0:03:29]} 7. O-O {[%emt 0:01:23]} cxd4 {[%emt 0:02:59]} 8. h3 {[%emt 0:04:26]} Bh5 {[%emt 0:01:41]} 9. g4 {[%emt 0:13:48]} Bg6 {[%emt 0:00:31]} 10. Nxd4 {[%emt 0:01:39]} Bc5 {[%emt 0:05:02]} 11. Nb3 {[%emt 0:06:16]} Bb6 {[%emt 0:02:40]} 12. Nc3 {[%emt 0:00:57]} Nge7 {[%emt 0:01:49]} 13. Nxd5 {[%emt 0:08:29]} Nxd5 {[%emt 0:00:30]} 14. Qxd5 {[%emt 0:03:45]} Qxd5 {[%emt 0:01:25]} 15. Bxd5 {[%emt 0:00:04]} O-O-O {[%emt 0:03:05]} 16. c4 {[%emt 0:03:02]} Nb4 {[%emt 0:02:10]} 17. Bg5 {[%emt 0:01:57]} Rd7 {[%emt 0:02:46]} 18. Bg2 {[%emt 0:04:04]} h5 {[%emt 0:04:28]} 19. Rfd1 {[%emt 0:08:28]} Rxd1+ {[%emt 0:04:51]} 20. Rxd1 {[%emt 0:00:04]} hxg4 {[%emt 0:00:36]} 21. hxg4 {[%emt 0:01:17]} Nd3 {[%emt 0:05:16]} 22. c5 {[%emt 0:07:38]} Bc7 {[%emt 0:03:19]} 23. Rd2 {[%emt 0:00:42]} Ne1 {[%emt 0:08:36]} 24. Bd5 {[%emt 0:04:09]} f6 {[%emt 0:03:19]} 25. Be3 {[%emt 0:01:40]} Nc2 {[%emt 0:00:49]} 26. Nd4 {[%emt 0:05:00]} Nxe3 {[%emt 0:03:23]} 27. fxe3 {[%emt 0:00:08]} Ba5 {[%emt 0:05:19]} 28. Rd1 {[%emt 0:03:14]} Rh3 {[%emt 0:02:55]} 29. c6 {[%emt 0:03:02]} bxc6 {[%emt 0:03:11]} 30. Nxc6 {[%emt 0:00:40]} Bb6 {[%emt 0:04:02]} 31. Ne7+ {[%emt 0:01:38]} Kc7 {[%emt 0:00:07]} 32. Nxg6 {[%emt 0:00:17]} Rxe3 {[%emt 0:00:07]} 33. Kf1 {[%emt 0:03:19]} Rg3 {[%emt 0:00:23]} 34. Be6 {[%emt 0:00:34]} Rf3+ {[%emt 0:01:28]} 35. Kg2 {[%emt 0:00:09]} Rf2+ {[%emt 0:00:05]} 36. Kg3 {[%emt 0:00:14]} Rxb2 {[%emt 0:00:11]} 37. Rd7+ {[%emt 0:00:50]} Kc6 {[%emt 0:00:09]} 38. Rxg7 {[%emt 0:00:17]} Re2 {[%emt 0:00:27]} 39. Bb3 {[%emt 0:01:30]} a5 {[%emt 0:00:22]} 40. Re7 {[%emt 0:00:00]} Bc7+ {[%emt 0:00:00]} 41. Kf3 {[%emt 0:00:49]} 1-0

[Event "Budapest Chess Festival 2024"]
[Site "Budapest"]
[Date "2024.05.23"]
[Round "1.15"]
[White "Kacprzak, Kacper"]
[Black "Fernandez, Daniel Howard"]
[Result "1/2-1/2"]
[ECO "C15"]
[WhiteElo "2256"]
[BlackElo "2526"]
[Annotator "TA"]
[PlyCount "142"]
[EventDate "2024.05.20"]
[EventType "swiss"]
[EventCountry "HUN"]
[SourceTitle "playchess.com"]
[Source "ChessBase"]
[SourceQuality "1"]
[TimeControl "40/5400+30:1800+30"]

{[%evp 21,142,21,49,36,38,33,53,0,0,0,0,0,0,-31,0,-1,0,0,0,0,0,0,0,0,0,-5,0,-15,-31,-26,0,0,0,0,-9,-16,7,3,11,0,0,0,0,0,0,0,5,0,0,0,0,0,0,0,0,0,0,0,0,0,0,0,0,0,0,0,0,0,0,0,0,0,0,0,0,0,0,0,0,0,0,0,0,0,0,0,0,0,0,0,0,0,0,0,0,0,8,0,0,0,0,0,13,0,0,0,0,0,0,0,0,0,0,0,0,0,0,0,0,0,0,0,0]} 1. e4 {[%emt 0:00:33]} e6 {[%emt 0:02:14]} 2. d4 {[%emt 0:00:08]} d5 {[%emt 0:00:02]} 3. Nc3 {[%emt 0:00:11]} Bb4 {[%emt 0:00:09]} 4. exd5 {[%emt 0:02:17]} Qxd5 {[%emt 0:03:41]} 5. Nf3 {[%emt 0:00:26]} b6 {[%emt 0:00:30]} 6. Bd3 {[%emt 0:01:37] C10: French with 3 Nc3: Unusual Black 3rd moves and 3...dxe4.} Ba6 {[%emt 0:00:59]} 7. O-O {[%emt 0:01:05]} Bxc3 {[%emt 0:05:40]} 8. bxc3 {[%emt 0:00:07]} Nf6 {[%emt 0:01:26]} 9. Qe2 $146 {[%emt 0:11:59]} ({Predecessor:} 9. Bxa6 Nxa6 10. Qd3 Nb8 11. c4 Qe4 12. Qb3 O-O 13. Re1 Qb7 14. Ba3 Re8 15. d5 {1-0 Markovic,M (2327)-Livaic,L (2508) SRB-chT Premier 2021 (3.2)}) 9... Bxd3 {[%emt 0:00:21]} 10. cxd3 {[%emt 0:00:05]} O-O {[%emt 0:00:14]} 11. c4 {[%emt 0:01:25]} Qh5 {[%emt 0:02:32]} 12. Bb2 {[%emt 0:04:09]} Nbd7 {[%emt 0:00:20]} 13. Rfe1 {[%emt 0:02:12]} Rfe8 {[%emt 0:00:30]} 14. Ne5 {[%emt 0:04:59]} (14. a4 $14) 14... Qxe2 $11 {[%emt 0:00:02]} 15. Rxe2 {[%emt 0:00:06]} c5 {[%emt 0:01:17]} 16. dxc5 {[%emt 0:07:23]} Nxc5 {[%emt 0:01:03]} 17. Rd1 {[%emt 0:01:37]} Nfd7 {[%emt 0:04:35]} 18. Nc6 {[%emt 0:07:05]} e5 {[%emt 0:04:19]} 19. d4 {[%emt 0:03:36]} ({Reject} 19. Nxe5 f6 20. f4 (20. d4 Na4 $17) 20... Nb7 $17 (20... fxe5 21. fxe5 Rac8 22. d4 $17)) 19... exd4 {[%emt 0:01:06]} 20. Rxe8+ {[%emt 0:00:12]} Rxe8 {[%emt 0:00:03]} 21. Bxd4 {[%emt 0:00:07]} a5 {[%emt 0:02:45]} 22. h3 {[%emt 0:03:21]} f6 {[%emt 0:00:12]} 23. Be3 {[%emt 0:02:49]} Re4 {[%emt 0:02:43]} 24. Rd6 {[%emt 0:07:21]} Rxc4 {[%emt 0:02:13]} 25. Ne7+ {[%emt 0:00:18]} Kf8 {[%emt 0:08:11]} 26. Nd5 $1 {[%emt 0:00:11]} Rc2 {[%emt 0:02:40]} 27. Nxb6 {[%emt 0:01:50]} Nxb6 {[%emt 0:00:27]} 28. Rxb6 {[%emt 0:00:04]} Ne4 {[%emt 0:01:51]} 29. a3 {[%emt 0:05:13]} Rc4 {[%emt 0:01:08]} 30. Ra6 {[%emt 0:02:15]} Ra4 {[%emt 0:01:33]} 31. Bb6 {[%emt 0:00:54]} Rxa3 {[%emt 0:00:05]} 32. Rxa5 {[%emt 0:00:07]} (32. f3 $5 Ra1+ $8 33. Kh2 $14) 32... Rb3 {[%emt 0:00:07]} 33. Be3 {[%emt 0:00:26]} Kf7 {[%emt 0:00:03]} 34. g4 {[%emt 0:00:44]} g5 {[%emt 0:00:46]} 35. Kg2 {[%emt 0:00:11]} Kg6 {[%emt 0:00:10]} 36. Ra4 {[%emt 0:01:05]} Nc3 {[%emt 0:00:28]} 37. Rd4 {[%emt 0:00:14]} Rb5 {[%emt 0:01:12]} 38. Rd3 {[%emt 0:00:53]} Nd5 {[%emt 0:00:03]} 39. Ra3 {[%emt 0:00:10]} h5 {[%emt 0:00:10]} 40. Kg3 {[%emt 0:00:00]} Rb1 {[%emt 0:00:00]} 41. Rd3 {[%emt 0:02:11]} Rb5 {[%emt 0:05:01]} 42. gxh5+ {[%emt 0:03:45]} Kxh5 {[%emt 0:00:23]} 43. f4 {[%emt 0:00:27]} Ne7 {[%emt 0:00:02]} 44. fxg5 {[%emt 0:02:11]} fxg5 {[%emt 0:00:03]} 45. Bf2 {[%emt 0:01:52]} Ng6 {[%emt 0:00:03]} 46. Be3 {[%emt 0:02:35]} Nh4 {[%emt 0:00:39]} 47. Bf2 {[%emt 0:02:31]} Rb2 {[%emt 0:00:09]} 48. Ra3 {[%emt 0:01:04]} Rc2 {[%emt 0:00:09]} 49. Rd3 {[%emt 0:01:00]} Kg6 {[%emt 0:00:45]} 50. Ra3 {[%emt 0:00:36]} Kh5 {[%emt 0:01:07]} 51. Rb3 {[%emt 0:00:55]} Ra2 {[%emt 0:00:09]} 52. Rc3 {[%emt 0:00:29]} Ra5 {[%emt 0:01:14]} 53. Rb3 {[%emt 0:00:29]} Kg6 {[%emt 0:00:20]} 54. Rc3 {[%emt 0:00:11]} Rf5 {[%emt 0:00:21]} 55. Rc6+ {[%emt 0:01:04]} Kf7 {[%emt 0:00:04]} 56. Rc7+ {[%emt 0:01:13]} Ke6 {[%emt 0:00:10]} 57. Rc6+ {[%emt 0:00:17]} Kd7 {[%emt 0:00:16]} 58. Rc3 {[%emt 0:00:04]} Kd6 {[%emt 0:00:27]} 59. Rd3+ {[%emt 0:01:40]} Ke5 {[%emt 0:00:07]} 60. Re3+ {[%emt 0:00:13]} Kd5 {[%emt 0:00:16]} 61. Rc3 {[%emt 0:00:39]} Kd6 {[%emt 0:01:24]} 62. Rd3+ {[%emt 0:00:15]} Ke6 {[%emt 0:00:02]} 63. Re3+ {[%emt 0:00:10]} Kf6 {[%emt 0:00:18]} 64. Rc3 {[%emt 0:00:21]} Rf4 {[%emt 0:00:10]} 65. Rc6+ {[%emt 0:01:17]} Ke7 {[%emt 0:00:12]} 66. Rc7+ {[%emt 0:00:28]} Kd6 {[%emt 0:00:22]} 67. Rc3 {[%emt 0:00:06]} Nf5+ {[%emt 0:00:15]} 68. Kg2 {[%emt 0:00:14]} Ra4 {[%emt 0:00:14]} 69. Rc8 {[%emt 0:02:44]} Ke5 {[%emt 0:00:12]} 70. Bg3+ {[%emt 0:04:13]} Kd4 {[%emt 0:02:04]} 71. Re8 {[%emt 0:02:01]} Nh4+ {[%emt 0:06:42]} 1/2-1/2

[Event "Budapest Chess Festival 2024"]
[Site "Budapest"]
[Date "2024.05.23"]
[Round "1.16"]
[White "Kantor, Gergely"]
[Black "Starosta, Martyna"]
[Result "1-0"]
[ECO "B12"]
[WhiteElo "2527"]
[BlackElo "2255"]
[Annotator "TA"]
[PlyCount "63"]
[EventDate "2024.05.20"]
[EventType "swiss"]
[EventCountry "HUN"]
[SourceTitle "playchess.com"]
[Source "ChessBase"]
[SourceQuality "1"]
[TimeControl "40/5400+30:1800+30"]

{[%evp 9,63,0,0,10,18,9,9,0,7,0,0,0,0,0,7,0,51,59,49,60,88,63,104,87,105,107,92,51,152,140,137,141,128,123,127,119,162,123,342,327,345,345,307,239,1396,1374,29991,29992,29992,2695,29990,29978,29997,29992,29992,29993]} 1. e4 {[%emt 0:00:50]} c6 {[%emt 0:01:06]} 2. d4 {[%emt 0:00:11]} d5 {[%emt 0:00:05]} 3. e5 {[%emt 0:00:04]} Bf5 {[%emt 0:00:22]} 4. h4 {[%emt 0:00:44]} h5 {[%emt 0:00:06]} 5. Bd3 {[%emt 0:00:17]} Bxd3 {[%emt 0:00:09]} 6. Qxd3 {[%emt 0:00:04][%cal Oe5e6] Hoping for e6!} Qa5+ {[%emt 0:00:20]} 7. Nd2 {[%emt 0:00:40][%cal Oe5e6] Threatens to win with e6!} e6 {[%emt 0:02:46]} 8. Ngf3 {[%emt 0:01:43] The position is equal.} Qa6 {[%emt 0:00:25]} 9. c4 {[%emt 0:00:15]} Ne7 {[%emt 0:03:24]} 10. O-O {[%emt 0:01:26]} Nf5 {[%emt 0:01:54]} 11. b3 {[%emt 0:00:49]} Be7 {[%emt 0:09:55]} 12. a4 {[%emt 0:01:32]} Nxh4 {[%emt 0:05:32]} (12... Bxh4 $11 13. Nxh4 Nxh4) 13. Nxh4 $14 {[%emt 0:01:26]} Bxh4 {[%emt 0:00:14]} 14. Ba3 {[%emt 0:00:56]} Qa5 {[%emt 0:04:59]} 15. Rfc1 {[%emt 0:21:28]} Nd7 {[%emt 0:09:00]} 16. Nf3 {[%emt 0:04:22] Dodges Bg5} Be7 {[%emt 0:04:33]} 17. Bxe7 {[%emt 0:00:35]} Kxe7 {[%emt 0:00:05]} 18. b4 {[%emt 0:10:05]} Qd8 {[%emt 0:04:18] [#]} (18... dxc4 $1 $14 19. Rxc4 Qd8) 19. b5 $1 $16 {[%emt 0:03:54]} Nb6 {[%emt 0:02:12]} 20. bxc6 {[%emt 0:06:24]} bxc6 {[%emt 0:01:12]} 21. cxd5 {[%emt 0:01:42]} cxd5 {[%emt 0:00:22]} 22. Nd2 {[%emt 0:02:39] And now a5 would win. White is more active.} Kf8 {[%emt 0:01:26]} 23. a5 {[%emt 0:03:40][%mdl 1024] White has strong compensation.} Nd7 {[%emt 0:09:19] This costs Black the game.} (23... Nc4 $16) 24. Rab1 $18 {[%emt 0:05:21] Black must now prevent Rb7.} Rb8 {[%emt 0:04:41]} 25. Qa6 {[%emt 0:02:38]} g6 {[%emt 0:11:52]} 26. Rb7 {[%emt 0:09:00]} Qg5 $2 {[%emt 0:11:43]} (26... Kg7 27. Rcc7 (27. Qxa7 $2 Ra8 $19) (27. Rxa7 Qg5 $18) 27... Rxb7 28. Qxb7 Rf8 29. Rxd7 Qxa5) 27. Rxd7 {[%emt 0:04:49]} Qxd2 {[%emt 0:00:28] [#]} 28. Rxf7+ $3 {[%emt 0:01:00][%mdl 512]} Kg8 {[%emt 0:01:21]} 29. Rfc7 {[%emt 0:01:17]} (29. Rxa7 $2 {loses.} Qxc1+ 30. Qf1 Qxf1+ 31. Kxf1 Rh7 $19) (29. Rcc7 $142 Qc1+ 30. Kh2 (30. Rxc1 Rh7 31. Rfc7 Rxc7 32. Rxc7 Kh8 33. Qxe6 Rb1+ 34. Kh2 Rh1+ 35. Kxh1 h4 36. Qe8#) 30... Qxc7 31. Rxc7 Re8 32. Qc6 (32. Qxa7 Rh6 33. Rg7+ Kh8 34. Qf7 Rc8 35. Qf6 h4 36. Rxg6+ Kh7 37. Qg7#) 32... Kf8 33. Qd7 (33. Rxa7 Re7 34. Rxe7 Kxe7 35. Qc7+ Kf8 36. a6 Rh7 37. Qxh7 h4 38. a7 g5 39. a8=Q#) 33... Rh7 34. Qxh7 Re7 35. Qxe7+ Kg8 36. Qg7#) 29... Re8 {[%emt 0:01:14]} 30. Qc6 {[%emt 0:00:15][%cal Rc6e8] White mates.} Kf8 {[%emt 0:00:26]} 31. Qd6+ {[%emt 0:00:08]} Kg8 {[%emt 0:00:07]} 32. Qd7 {[%emt 0:00:07] Weighted Error Value: White=0.10 (very precise) /Black=0.59.  Loses game:     	---       	Black=1      Mistake:       	---       	Black=3      Inaccurate:     	White=1     	Black=4      OK:         	White=7     	Black=4      Best:        	White=4     	Black=2      Strong:       	White=1     	---} 1-0

[Event "Budapest Chess Festival 2024"]
[Site "Budapest"]
[Date "2024.05.23"]
[Round "1.17"]
[White "Sahithi Varshini M"]
[Black "Szpar, Milosz"]
[Result "0-1"]
[ECO "C02"]
[WhiteElo "2251"]
[BlackElo "2512"]
[Annotator "TA"]
[PlyCount "60"]
[EventDate "2024.05.20"]
[EventType "swiss"]
[EventCountry "HUN"]
[SourceTitle "playchess.com"]
[Source "ChessBase"]
[SourceQuality "1"]
[TimeControl "40/5400+30:1800+30"]

{[%evp 19,60,0,14,0,0,-25,14,16,19,-9,0,-18,-12,-31,18,0,0,-58,-59,-110,-116,-160,-165,-172,-159,-239,-237,-285,-279,-269,-278,-283,-288,-300,-303,-327,-315,-334,-330,-364,-370,-1312,-501]} 1. e4 {[%emt 0:01:21]} e6 {[%emt 0:00:37]} 2. d4 {[%emt 0:00:07]} d5 {[%emt 0:00:10]} 3. e5 {[%emt 0:00:37]} c5 {[%emt 0:00:06]} 4. c3 {[%emt 0:00:05]} Nc6 {[%emt 0:00:05]} 5. Nf3 {[%emt 0:00:07]} Bd7 {[%emt 0:00:13]} 6. Be2 {[%emt 0:00:23]} Nge7 {[%emt 0:00:07]} 7. Na3 {[%emt 0:07:59]} cxd4 {[%emt 0:02:02]} 8. cxd4 {[%emt 0:00:09]} Nf5 {[%emt 0:00:05]} 9. Nc2 {[%emt 0:01:07]} Qb6 {[%emt 0:00:34]} 10. O-O {[%emt 0:03:44]} Rc8 {[%emt 0:02:15]} 11. Kh1 {[%emt 0:13:08]} Na5 {[%emt 0:00:33][%cal Bc6a5,Ba5c4,Bc4b6,Bb6a4,Ba4c3][%mdl 32]} 12. Re1 {[%emt 0:02:13]} Be7 {[%emt 0:00:14]} 13. Bd3 {[%emt 0:12:36] The position is equal.} h6 {[%emt 0:00:05]} 14. Qe2 {[%emt 0:11:08]} a6 {[%emt 0:00:08]} 15. b4 {[%emt 0:07:11]} Nc4 {[%emt 0:05:12]} 16. a4 {[%emt 0:04:59]} Qd8 {[%emt 0:08:28]} (16... Bxb4 $15 17. Nxb4 Qxb4) 17. g4 {[%emt 0:02:12]} Nh4 {[%emt 0:01:17]} 18. Ng1 {[%emt 0:05:49]} (18. Nxh4 $11 Bxh4 19. Rg1) 18... Nb6 {[%emt 0:09:20]} 19. a5 {[%emt 0:05:34]} (19. b5 $15) 19... Na4 $17 {[%emt 0:00:33]} 20. f4 {[%emt 0:03:36]} Nc3 {[%emt 0:00:30] Black is more active.} 21. Qf1 {[%emt 0:01:04]} Bb5 {[%emt 0:05:51]} 22. Re3 {[%emt 0:02:42]} (22. Bxb5+ $17 Nxb5 23. Qe2) 22... h5 $19 {[%emt 0:07:38]} 23. gxh5 {[%emt 0:07:05]} Rxh5 {[%emt 0:05:39]} 24. Bxb5+ {[%emt 0:00:10]} Nxb5 {[%emt 0:00:47]} 25. Qd1 {[%emt 0:00:15]} g6 {[%emt 0:01:05]} 26. Bb2 {[%emt 0:01:15]} Nf5 {[%emt 0:05:06] [#] aiming for ...Rxc2.} 27. Rf3 {[%emt 0:01:18]} Rc4 {[%emt 0:05:08]} 28. Qd2 {[%emt 0:02:37]} Kd7 {[%emt 0:09:56]} 29. Rc1 {[%emt 0:01:47]} Qh8 {[%emt 0:00:47]} 30. Rf2 $2 {[%emt 0:02:11] [#]} (30. Qf2) 30... Ng3+ {[%emt 0:00:14] Weighted Error Value: White=0.51/Black=0.06 (flawless) .  Mistake:       	White=4     	Black=1      Inaccurate:     	White=2     	Black=1      OK:         	White=4     	Black=11     Best:        	---       	Black=1} 0-1

[Event "Budapest Chess Festival 2024"]
[Site "Budapest"]
[Date "2024.05.23"]
[Round "1.18"]
[White "Parkhov, Yair"]
[Black "Toncheva, Nadya"]
[Result "1-0"]
[ECO "A30"]
[WhiteElo "2510"]
[BlackElo "2251"]
[Annotator "TA"]
[PlyCount "73"]
[EventDate "2024.05.20"]
[EventType "swiss"]
[EventCountry "HUN"]
[SourceTitle "playchess.com"]
[Source "ChessBase"]
[SourceQuality "1"]
[TimeControl "40/5400+30:1800+30"]

{[%evp 16,73,36,29,45,41,41,41,31,38,34,16,14,34,67,63,117,120,125,89,269,132,130,134,137,138,145,150,138,149,148,144,148,160,154,149,169,176,214,216,241,232,306,307,314,311,314,318,313,260,331,327,317,309,414,414,455,458,993,972]} 1. c4 {[%emt 0:00:36]} c5 {[%emt 0:00:40]} 2. Nf3 {[%emt 0:00:04]} Nc6 {[%emt 0:00:04]} 3. d4 {[%emt 0:00:05]} cxd4 {[%emt 0:00:07]} 4. Nxd4 {[%emt 0:00:18]} e6 {[%emt 0:00:05]} 5. g3 {[%emt 0:05:52]} Nf6 {[%emt 0:00:33]} 6. Bg2 {[%emt 0:00:06]} Bc5 {[%emt 0:02:45]} 7. Nb3 {[%emt 0:03:22]} Be7 {[%emt 0:00:37]} 8. Nc3 {[%emt 0:00:44][%cal Bb1c3,Bc3b5,Bb5d6][%mdl 32]} O-O {[%emt 0:03:56]} 9. O-O {[%emt 0:01:28]} b6 {[%emt 0:07:45]} 10. Bf4 {[%emt 0:06:06]} Bb7 {[%emt 0:02:48]} 11. Rc1 {[%emt 0:08:05]} d6 {[%emt 0:04:23] White is slightly better.} 12. Nb5 {[%emt 0:10:37]} Ne8 {[%emt 0:01:49]} 13. Qd2 {[%emt 0:00:16]} e5 {[%emt 0:06:33]} 14. Be3 {[%emt 0:01:26]} Nc7 {[%emt 0:04:00]} 15. Rfd1 {[%emt 0:03:26][%cal Rb5d6]} Qb8 {[%emt 0:05:10]} (15... Ne8 $14) 16. Nxd6 $16 {[%emt 0:16:02] White is much more active.} Rd8 {[%emt 0:00:56]} 17. c5 $36 {[%emt 0:00:11][%mdl 2048] Qe1 would now be deadly. White is on the roll.} bxc5 $2 {[%emt 0:10:08] Loses the game.} (17... Ne6 $16) 18. Bxc5 {[%emt 0:01:40]} (18. Nxc5 $18 {is the precise move to win.} Rxd6 19. Qxd6 Bxd6 20. Nxb7) 18... Ne8 {[%emt 0:00:46][%cal Re7d6] [#]} 19. Qc2 $1 {[%emt 0:23:53]} Nxd6 {[%emt 0:20:28] [#]} (19... Bxd6 20. Bxc6) 20. Bxc6 $1 {[%emt 0:00:47]} Bxc6 {[%emt 0:00:29]} 21. Bxd6 {[%emt 0:00:05]} Rxd6 {[%emt 0:00:29]} 22. Rxd6 {[%emt 0:00:05]} Qxd6 {[%emt 0:00:15]} 23. Qxc6 {[%emt 0:00:05]} Qxc6 {[%emt 0:04:00]} 24. Rxc6 {[%emt 0:00:05][%mdl 4096] Endgame. KRB-KRN} a5 {[%emt 0:02:07][%cal Ba7a5,Ba5a4][%mdl 32]} 25. Nd2 {[%emt 0:01:39]} f6 {[%emt 0:00:14]} 26. Nc4 {[%emt 0:00:25]} a4 {[%emt 0:03:13]} 27. Nb6 {[%emt 0:02:29]} Ra5 {[%emt 0:02:04]} 28. a3 {[%emt 0:00:30]} Bc5 {[%emt 0:02:03]} 29. Nc4 {[%emt 0:00:20]} Rb5 {[%emt 0:00:06]} 30. Ra6 {[%emt 0:00:52]} Rb3 {[%emt 0:01:15]} 31. Rxa4 {[%emt 0:00:23]} Kf7 {[%emt 0:00:59]} 32. Kf1 {[%emt 0:09:15]} Ke6 {[%emt 0:00:13]} 33. e3 {[%emt 0:00:29]} Kd5 {[%emt 0:02:11]} 34. Ke2 {[%emt 0:00:08]} Rb8 {[%emt 0:02:32]} 35. Kd3 {[%emt 0:00:26]} e4+ {[%emt 0:00:17]} 36. Kc3 {[%emt 0:00:39]} f5 {[%emt 0:01:21]} (36... Bf8 $142 37. Ra5+ Ke6) 37. Ra5 {[%emt 0:00:32] Weighted Error Value: White=0.11 (very precise) /Black=0.33.  Loses game:     	---       	Black=1      Mistake:       	White=1     	Black=2      Inaccurate:     	---       	Black=3      OK:         	White=15    	Black=6      Best:        	White=2     	Black=1      Strong:       	White=1     	---} 1-0

[Event "Budapest Chess Festival 2024"]
[Site "Budapest"]
[Date "2024.05.23"]
[Round "1.19"]
[White "Zentai, Peter"]
[Black "Visakh N R"]
[Result "0-1"]
[ECO "E01"]
[WhiteElo "2251"]
[BlackElo "2511"]
[Annotator "TA"]
[PlyCount "76"]
[EventDate "2024.05.20"]
[EventType "swiss"]
[EventCountry "HUN"]
[SourceTitle "playchess.com"]
[Source "ChessBase"]
[SourceQuality "1"]
[TimeControl "40/5400+30:1800+30"]

{[%evp 14,76,8,11,16,2,1,0,10,0,-4,-3,0,0,0,-1,10,-16,-19,-7,-14,-37,-45,-36,-34,-30,-19,-88,-87,-101,-101,-117,-114,-100,-113,-125,-127,-116,-110,-167,-172,-176,-79,-94,-108,-92,-79,-127,-112,-118,-88,-99,-89,-190,-199,-202,-206,-319,-303,-288,-304,-494,-498,-471,-347]} 1. d4 {[%emt 0:00:35]} Nf6 {[%emt 0:00:36]} 2. c4 {[%emt 0:00:08]} e6 {[%emt 0:00:18]} 3. g3 {[%emt 0:00:29]} d5 {[%emt 0:05:40]} 4. Bg2 {[%emt 0:00:27]} Bb4+ {[%emt 0:00:50]} 5. Nd2 {[%emt 0:01:26]} O-O {[%emt 0:02:43]} 6. Ngf3 {[%emt 0:03:12]} b6 {[%emt 0:01:18]} 7. O-O {[%emt 0:01:24]} Bb7 {[%emt 0:00:30]} 8. Ne5 {[%emt 0:01:29]} Re8 {[%emt 0:01:16]} 9. Qa4 {[%emt 0:13:18]} a5 {[%emt 0:06:16]} 10. Rd1 {[%emt 0:10:02]} Bd6 {[%emt 0:01:44] The position is equal.} 11. Ndf3 {[%emt 0:17:53]} h6 {[%emt 0:02:25]} 12. Bf4 c5 {[%emt 0:07:45]} 13. dxc5 {[%emt 0:11:34]} bxc5 {[%emt 0:01:40]} 14. Rac1 {[%emt 0:05:02]} Ra6 {[%emt 0:09:25]} 15. Nd3 {[%emt 0:02:41]} (15. h4 {is interesting.} Nh5 16. cxd5 Nxf4 17. Qxf4 Qe7 18. dxe6 Qxe6 19. Qe3) 15... d4 {[%emt 0:08:49]} 16. Bxd6 $1 {[%emt 0:04:56]} Qxd6 {[%emt 0:02:02]} 17. Nfe5 {[%emt 0:01:42]} Bxg2 {[%emt 0:03:00]} 18. Kxg2 {[%emt 0:00:02]} Rc8 {[%emt 0:00:32]} 19. f3 {[%emt 0:05:28]} Qc7 {[%emt 0:01:44]} 20. Rd2 {[%emt 0:02:57]} (20. e3 $11) 20... Ne8 $17 {[%emt 0:02:07][%cal Bf6e8,Be8d6,Bd6f5][%mdl 32]} 21. Re1 {[%emt 0:03:06]} Nd6 {[%emt 0:01:33]} 22. e4 {[%emt 0:03:34]} dxe3 {[%emt 0:02:35]} 23. Rxe3 {[%emt 0:00:01]} Nf5 {[%emt 0:00:06]} 24. Re1 {[%emt 0:00:20]} Rd6 {[%emt 0:00:05]} 25. Qa3 {[%emt 0:08:07]} Rcd8 {[%emt 0:03:20] ...Na6 would now be deadly.} 26. Rf2 {[%emt 0:00:42]} (26. Qc3 $17) 26... f6 $19 {[%emt 0:01:37]} 27. Qxc5 {[%emt 0:00:27]} Na6 {[%emt 0:03:19]} (27... Qxc5 $19 {and Black stays clearly on top.} 28. Nxc5 fxe5 29. Rxe5 Nc6) 28. Qxc7 $17 {[%emt 0:00:37]} Nxc7 {[%emt 0:00:02]} 29. Nc5 {[%emt 0:00:11][%cal Oc5b7]} fxe5 {[%emt 0:00:05]} 30. Nb7 {[%emt 0:00:09]} (30. Rxe5 $142 Ra8 31. b3) 30... Rd1 {[%emt 0:00:05]} 31. Rxe5 {[%emt 0:00:40]} R8d2 {[%emt 0:00:08]} 32. Nxa5 {[%emt 0:01:31]} Nd4 $36 {[%emt 0:02:44][%mdl 2048] Black is on the roll. Black is more active.} 33. b4 {[%emt 0:01:43]} (33. Nb3 $17 {keeps fighting.} Nxb3 34. axb3) 33... Rxf2+ $19 {[%emt 0:00:54]} 34. Kxf2 {[%emt 0:00:01]} Ra1 {[%emt 0:00:02]} 35. Rc5 {[%emt 0:01:25]} (35. Ke3 {might work better.} Nc2+ 36. Kd3 Nxb4+ (36... Rxa2 37. Nc6 $16) 37. Kc3) 35... Na6 {[%emt 0:01:35]} 36. Rc8+ {[%emt 0:00:25]} Kf7 {[%emt 0:00:02]} 37. Rd8 $2 {[%emt 0:00:36] [#]} (37. Ke3 Nc2+ 38. Kd2 Ncxb4 39. Nc6 Rxa2+ 40. Kc3 Nxc6 41. Rxc6) 37... Rxa2+ {[%emt 0:00:51]} 38. Kf1 {[%emt 0:00:11]} Nxb4 {[%emt 0:02:12] Weighted Error Value: White=0.26 (precise) /Black=0.08 (flawless) .  Mistake:       	White=6     	Black=1      Inaccurate:     	White=1     	---        OK:         	White=8     	Black=13     Best:        	White=3     	Black=4      Strong:       	White=1     	---} 0-1